fUSD/lending_fUSD_20260319
["ID","MTS","AMOUNT","RATE_DAILY","PERIOD"]
[408566206,1773893439756,-156.12652739,0.00013421,2]
[408566207,1773893439768,-500.0,0.00013421,2]
[408566208,1773893439782,-500.0,0.00013421,2]
[408566209,1773893439793,-150.0,0.00013421,2]
[408566210,1773893439804,-500.0,0.00013421,2]
[408566211,1773893439815,-150.0,0.00013421,2]
[408566212,1773893439826,-154.75024109,0.00013421,2]
[408566213,1773893439837,-150.0,0.00013421,2]
[408566214,1773893439848,-500.0,0.00013421,2]
[408566215,1773893439861,-202.13850988,0.00013421,2]
[408566216,1773893439874,-500.0,0.00013421,2]
[408566217,1773893439884,-500.0,0.00013421,2]
[408566218,1773893439895,-500.0,0.00013421,2]
[408566219,1773893439907,-500.0,0.00013421,2]
[408566220,1773893439918,-150.0,0.00013421,2]
[408566221,1773893439929,-500.0,0.00013421,2]
[408566222,1773893439941,-500.0,0.00013421,2]
[408566223,1773893439951,-150.0,0.00013421,2]
[408566224,1773893439962,-500.0,0.00013421,2]
[408566226,1773893439975,-500.0,0.00013421,2]
[408566227,1773893439986,-182.59231839,0.00013421,2]
[408566229,1773893439997,-556.13980161,0.00013421,2]
[408566230,1773893440008,-500.0,0.00013421,2]
[408566231,1773893440019,-500.0,0.00013421,2]
[408566232,1773893440030,-500.0,0.00013421,2]
[408566233,1773893440041,-500.0,0.00013421,2]
[408566234,1773893440051,-542.50378378,0.00013421,2]
[408566235,1773893440062,-500.0,0.00013421,2]
[408566236,1773893440549,-608.69659724,0.00013421,2]
[408566237,1773893440575,-150.0,0.00013421,2]
[408566238,1773893440592,-207.36459101,0.00013421,2]
[408566240,1773893440602,-201.87068709,0.00013421,2]
[408566241,1773893440611,-3240.0,0.00013425,2]
[408566242,1773893440621,-150.0,0.00013429,2]
[408566243,1773893440630,-150.0,0.00013429,2]
[408566244,1773893440639,-150.14,0.00013429,2]
[408566245,1773893440648,-620.0,0.00013429,2]
[408566247,1773893440658,-1344.0,0.00013429,2]
[408566248,1773893440667,-1044.0,0.00013429,2]
[408566249,1773893440678,-500.0,0.00013479,2]
[408566250,1773893440688,-436.0,0.00013589,2]
[408566251,1773893440699,-435.0,0.00013676,3]
[408566252,1773893440710,-202.0,0.00013676,3]
[408566253,1773893440719,-151.0,0.00013697,2]
[408566254,1773893440730,-151.0,0.00013697,2]
[408566255,1773893440739,-151.0,0.00013697,2]
[408566256,1773893440752,-500.0,0.00013698,2]
[408566257,1773893440762,-329.84951832,0.00013698,2]
[408566258,1773893440771,-500.0,0.00013698,2]
[408566259,1773893440780,-500.0,0.00013698,2]
[408566260,1773893440790,-500.0,0.00013698,2]
[408566261,1773893440799,-500.0,0.00013698,2]
[408566262,1773893440810,-500.0,0.00013698,2]
[408566263,1773893440820,-500.0,0.00013698,2]
[408566265,1773893440831,-500.0,0.00013698,2]
[408566266,1773893440843,-500.0,0.00013698,2]
[408566267,1773893440854,-500.0,0.00013698,2]
[408566268,1773893440868,-500.0,0.00013698,2]
[408566269,1773893440877,-500.0,0.00013698,2]
[408566270,1773893440887,-500.0,0.00013698,2]
[408566271,1773893440896,-500.0,0.00013698,2]
[408566272,1773893440907,-500.0,0.00013698,2]
[408566273,1773893440916,-573.27517413,0.00013698,2]
[408566274,1773893440926,-500.0,0.00013698,2]
[408566275,1773893440937,-549.26309957,0.00013698,2]
[408566276,1773893440946,-150.0,0.00013699,2]
[408566277,1773893440955,-715.67,0.00013699,2]
[408566278,1773893440965,-500.0,0.00013699,2]
[408566279,1773893440974,-500.0,0.00013699,2]
[408566280,1773893440983,-500.0,0.00013699,2]
[408566281,1773893440993,-500.0,0.00013699,2]
[408566282,1773893441002,-500.0,0.00013699,2]
[408566283,1773893441012,-500.0,0.00013699,2]
[408566284,1773893441021,-500.0,0.00013699,2]
[408566285,1773893441031,-414.02499317,0.00013699,2]
[408566286,1773893441040,-500.0,0.00013699,2]
[408566287,1773893441050,-500.0,0.00013699,2]
[408566288,1773893441060,-500.0,0.00013699,2]
[408566289,1773893441069,-500.0,0.00013699,2]
[408566290,1773893441079,-500.0,0.00013699,2]
[408566291,1773893441088,-500.0,0.00013699,2]
[408566292,1773893441098,-500.0,0.00013699,2]
[408566293,1773893441107,-500.0,0.00013699,2]
[408566294,1773893441117,-389.68962136,0.00013699,2]
[408566295,1773893441126,-500.0,0.00013699,2]
[408566296,1773893441135,-500.0,0.00013699,2]
[408566297,1773893441144,-500.0,0.00013699,2]
[408566298,1773893441154,-500.0,0.00013699,2]
[408566299,1773893441163,-500.0,0.00013699,2]
[408566300,1773893441172,-162.36552885,0.00013699,2]
[408566301,1773893441182,-500.0,0.00013699,2]
[408566302,1773893441191,-500.0,0.00013699,2]
[408566303,1773893441201,-500.0,0.00013699,2]
[408566304,1773893441211,-500.0,0.00013699,2]
[408566305,1773893441220,-500.0,0.00013699,2]
[408566306,1773893441229,-500.0,0.00013699,2]
[408566307,1773893441239,-9999.99,0.00013699,2]
[408566308,1773893441250,-10379.68,0.00013699,2]
[408566309,1773893441259,-247.40537464,0.00013699,2]
[408566310,1773893441269,-823.86,0.000137,2]
[408566311,1773893441279,-4601.21,0.000137,2]
[408566312,1773893441289,-604.18,0.000137,2]
[408566313,1773893441298,-9535.42,0.000137,2]
[408566314,1773893441313,-7782.91,0.000137,2]
[408566315,1773893441323,-3665.66,0.000137,2]
[408566316,1773893441332,-576927.74,0.000137,2]
[408566317,1773893441341,-216.80521591,0.000137,2]
[408566318,1773893441351,-95340.0,0.000137,2]
[408566319,1773893441361,-4977.40641031,0.00013741,2]
[408566320,1773893441370,-4968.42697151,0.00013763,2]
[408566321,1773893441379,-175.8,0.00013857,2]
[408566322,1773893441390,-330.0,0.00013865,2]
[408566323,1773893441400,-154.42032794,0.00013881,2]
[408566324,1773893441410,-823.0,0.00013939,2]
[408566325,1773893441421,-823.0,0.00013939,2]
[408566326,1773893441433,-3292.0,0.00013958,2]
[408566327,1773893441445,-736.0,0.00013975,2]
[408566328,1773893441456,-159.08,0.00014007,2]
[408566329,1773893441465,-1000.0,0.00014082,2]
[408566330,1773893441474,-2500.0,0.00014082,2]
[408566331,1773893441483,-1700.0,0.00014082,2]
[408566332,1773893441492,-1329.87930267,0.00014133,2]
[408566333,1773893441502,-4977.40641031,0.00014147,2]
[408566334,1773893441512,-150.0,0.00014177,2]
[408566335,1773893441521,-504.0,0.0001421,2]
[408566336,1773893441532,-6819.86,0.00014224,2]
[408566337,1773893441542,-2000.0,0.00014233,2]
[408566338,1773893441552,-1000.0,0.00014247,2]
[408566339,1773893441561,-737.3283016,0.00014247,2]
[408566340,1773893441571,-156.4847291,0.00014247,2]
[408566341,1773893441580,-499.94158246,0.00014247,2]
[408566342,1773893441590,-1000.0,0.00014247,2]
[408566343,1773893441599,-1000.0,0.00014247,2]
[408566344,1773893441609,-1000.0,0.00014247,2]
[408566345,1773893441618,-801.7381184,0.00014247,2]
[408566346,1773893441627,-1000.0,0.00014247,2]
[408566347,1773893441637,-1000.0,0.00014247,2]
[408566348,1773893441648,-1000.0,0.00014247,2]
[408566349,1773893441658,-1000.0,0.00014247,2]
[408566350,1773893441669,-1000.0,0.00014247,2]
[408566351,1773893441679,-412.99392051,0.00014247,2]
[408566352,1773893441693,-1000.0,0.00014247,2]
[408566353,1773893441703,-1000.0,0.00014247,2]
[408566354,1773893441715,-1000.0,0.00014247,2]
[408566355,1773893441725,-1000.0,0.00014247,2]
[408566356,1773893441735,-1000.0,0.00014247,2]
[408566357,1773893441744,-1000.0,0.00014247,2]
[408566358,1773893441754,-1000.0,0.00014247,2]
[408566359,1773893441763,-1000.0,0.00014247,2]
[408566360,1773893441773,-1000.0,0.00014247,2]
[408566361,1773893441783,-1000.0,0.00014247,2]
[408566362,1773893441792,-1000.0,0.00014247,2]
[408566363,1773893441802,-1000.0,0.00014247,2]
[408566364,1773893441812,-3035.28934949,0.00014262,2]
[408566365,1773893441821,-4968.42697151,0.00014309,2]
[408566366,1773893441831,-2000.0,0.00014333,2]
[408566367,1773893441840,-1567.0,0.000144,2]
[408566368,1773893441849,-441.13,0.00014425,2]
[408566369,1773893441859,-2000.0,0.00014433,2]
[408566370,1773893441871,-5533.0,0.000145,3]
[408566371,1773893441880,-2917.9109486,0.00014518,2]
[408566372,1773893441890,-2000.0,0.00014533,2]
[408566373,1773893441899,-2000.0,0.00014633,2]
[408566374,1773893441911,-486.31849143,0.00014649,2]
[408566375,1773893441920,-997.0,0.000147,2]
[408566376,1773893441930,-576.0,0.000147,2]
[408566377,1773893441944,-435.0,0.00014704,3]
[408566378,1773893441953,-202.0,0.00014704,3]
[408566379,1773893441963,-159.08,0.00014707,2]
[408566380,1773893441972,-2402.0,0.0001472,2]
[408566381,1773893441981,-2402.0,0.0001472,2]
[408566382,1773893441991,-1567.0,0.0001472,2]
[408566383,1773893442001,-2000.0,0.00014733,2]
[408566384,1773893442012,-486.31849143,0.00014794,2]
[408566385,1773893442021,-694.66141584,0.00014795,2]
[408566386,1773893442031,-1500.0,0.00014795,2]
[408566387,1773893442041,-1500.0,0.00014795,2]
[408566388,1773893442050,-1500.0,0.00014795,2]
[408566389,1773893442060,-1500.0,0.00014795,2]
[408566390,1773893442069,-1500.0,0.00014795,2]
[408566391,1773893442079,-1000.0,0.00014795,2]
[408566392,1773893442089,-505.49650087,0.00014795,2]
[408566393,1773893442098,-1500.0,0.00014795,2]
[408566394,1773893442108,-1500.0,0.00014795,2]
[408566395,1773893442118,-676.85294544,0.00014795,2]
[408566396,1773893442127,-1500.0,0.00014795,2]
[408566397,1773893442137,-1500.0,0.00014795,2]
[408566398,1773893442147,-1500.0,0.00014795,2]
[408566399,1773893442157,-1500.0,0.00014795,2]
[408566400,1773893442166,-1500.0,0.00014795,2]
[408566401,1773893442176,-1500.0,0.00014795,2]
[408566402,1773893442186,-1500.0,0.00014795,2]
[408566403,1773893442195,-1500.0,0.00014795,2]
[408566404,1773893442205,-1500.0,0.00014795,2]
[408566405,1773893442215,-1500.0,0.00014795,2]
[408566406,1773893442225,-2000.0,0.00014833,2]
[408566407,1773893442235,-4968.42697151,0.00014854,2]
[408566408,1773893442244,-330.0,0.00014865,2]
[408566409,1773893442254,-1000.0,0.000149,5]
[408566410,1773893442263,-400.0,0.000149,5]
[408566411,1773893442272,-1750.0,0.00014914,5]
[408566412,1773893442281,-2000.0,0.00014933,2]
[408566413,1773893442291,-486.31849143,0.00014939,2]
[408566414,1773893442301,-1209.24616255,0.00015,2]
[408566415,1773893442311,-1046.8329771,0.00015,2]
[408566416,1773893442321,-490.69480476,0.00015,2]
[408566417,1773893442330,-942.35170164,0.00015,2]
[408566418,1773893442340,-500.0,0.00015,2]
[408566419,1773893442350,-500.0,0.00015,2]
[408566420,1773893442359,-500.0,0.00015,2]
[408566421,1773893442369,-500.0,0.00015,2]
[408566422,1773893442378,-500.0,0.00015,2]
[408566423,1773893442388,-500.0,0.00015,2]
[408566424,1773893442398,-500.0,0.00015,2]
[408566425,1773893442407,-500.0,0.00015,2]
[408566426,1773893442418,-500.0,0.00015,2]
[408566427,1773893442427,-500.0,0.00015,2]
[408566428,1773893442437,-612.39,0.00015,2]
[408566429,1773893442447,-500.0,0.00015,2]
[408566430,1773893442457,-500.0,0.00015,2]
[408566431,1773893442467,-500.0,0.00015,2]
[408566432,1773893442476,-423.72,0.00015,2]
[408566433,1773893442486,-7782.91,0.00015,2]
[408566434,1773893442496,-3665.66,0.00015,2]
[408566435,1773893442506,-2000.0,0.00015033,2]
[408566436,1773893442515,-161.0,0.0001504,2]
[408566437,1773893442525,-2398.0,0.0001504,2]
[408566438,1773893442534,-235.0,0.00015068,2]
[408566439,1773893442543,-470.0,0.00015068,2]
[408566440,1773893442553,-879.01,0.00015068,2]
[408566441,1773893442563,-166.1762201,0.00015073,2]
[408566442,1773893442573,-504.0,0.00015087,3]
[408566443,1773893442583,-174353.80516932,0.000151,2]
[408566452,1773893442993,-16437.20481205,0.000151,2]
[408566453,1773893443004,-443.21634454,0.000151,2]
[408566454,1773893443016,-2332.12869458,0.000151,2]
[408566455,1773893443027,-1171.43251072,0.000151,2]
[408566456,1773893443058,-653.07,0.000151,2]
[408566460,1773893443636,-151.0,0.000106,2]
[408566461,1773893443646,-15606.73020078,0.000151,2]
[408566462,1773893443666,-365930.15226801,0.000151,2]
[408566463,1773893443675,-388.876166,0.000151,2]
[408566464,1773893443684,-388.876166,0.000151,2]
[408566465,1773893443693,-388.876166,0.000151,2]
[408566466,1773893443702,-151.0,0.000151,2]
[408566467,1773893443712,-971.057393,0.000151,2]
[408566468,1773893443722,-388.876166,0.000151,2]
[408566469,1773893443732,-151.0,0.000151,2]
[408566470,1773893443741,-971.057393,0.000151,2]
[408566471,1773893443750,-267.227624,0.000151,2]
[408566472,1773893443759,-971.057393,0.000151,2]
[408566473,1773893443768,-151.0,0.000151,2]
[408566474,1773893443777,-267.227624,0.000151,2]
[408566475,1773893443787,-971.057393,0.000151,2]
[408566476,1773893443796,-151.0,0.000151,2]
[408566477,1773893443805,-267.227624,0.000151,2]
[408566478,1773893443815,-273.968338,0.000151,2]
[408566479,1773893443824,-267.227624,0.000151,2]
[408566480,1773893443833,-273.968338,0.000151,2]
[408566481,1773893443842,-151.0,0.000151,2]
[408566482,1773893443851,-273.968338,0.000151,2]
[408566483,1773893443865,-2289.291087,0.000151,2]
[408566484,1773893443874,-151.0,0.000151,2]
[408566485,1773893443884,-273.968338,0.000151,2]
[408566486,1773893443894,-2289.291087,0.000151,2]
[408566487,1773893443905,-9502.243902,0.000151,2]
[408566488,1773893443915,-2289.291087,0.000151,2]
[408566489,1773893443925,-9502.243902,0.000151,2]
[408566490,1773893443938,-2289.291087,0.000151,2]
[408566491,1773893443948,-9502.243902,0.000151,2]
[408566492,1773893443960,-240.935014,0.000151,2]
[408566493,1773893443970,-151.0,0.000151,2]
[408566494,1773893443979,-9502.243902,0.000151,2]
[408566495,1773893443988,-240.935014,0.000151,2]
[408566496,1773893443996,-770.064578,0.000151,2]
[408566497,1773893444006,-151.0,0.000151,2]
[408566498,1773893444015,-202.884032,0.000151,2]
[408566499,1773893444024,-240.935014,0.000151,2]
[408566500,1773893444033,-770.064578,0.000151,2]
[408566501,1773893444043,-202.884032,0.000151,2]
[408566502,1773893444052,-240.935014,0.000151,2]
[408566503,1773893444061,-770.064578,0.000151,2]
[408566504,1773893444070,-151.0,0.000151,2]
[408566505,1773893444079,-202.884032,0.000151,2]
[408566506,1773893444088,-770.064578,0.000151,2]
[408566507,1773893444097,-202.884032,0.000151,2]
[408566508,1773893444107,-151.0,0.000151,2]
[408566509,1773893444116,-2612.845104,0.000151,2]
[408566510,1773893444126,-313.163194,0.000151,2]
[408566512,1773893444135,-151.0,0.000151,2]
[408566513,1773893444144,-313.163194,0.000151,2]
[408566514,1773893444153,-2612.845104,0.000151,2]
[408566515,1773893444162,-2612.845104,0.000151,2]
[408566516,1773893444171,-151.0,0.000151,2]
[408566517,1773893444180,-2612.845104,0.000151,2]
[408566518,1773893444190,-313.163194,0.000151,2]
[408566519,1773893444199,-175.630658,0.000151,2]
[408566520,1773893444208,-606.713391,0.000151,2]
[408566521,1773893444217,-313.163194,0.000151,2]
[408566522,1773893444227,-606.713391,0.000151,2]
[408566523,1773893444236,-172.340861,0.000151,2]
[408566524,1773893444246,-186.781636,0.000151,2]
[408566525,1773893444255,-3178.349364,0.000151,2]
[408566526,1773893444264,-606.713391,0.000151,2]
[408566527,1773893444274,-172.340861,0.000151,2]
[408566528,1773893444286,-186.781636,0.000151,2]
[408566529,1773893444297,-3178.349364,0.000151,2]
[408566530,1773893444306,-606.713391,0.000151,2]
[408566531,1773893444315,-172.340861,0.000151,2]
[408566532,1773893444325,-186.781636,0.000151,2]
[408566533,1773893444335,-3178.349364,0.000151,2]
[408566534,1773893444345,-172.340861,0.000151,2]
[408566535,1773893444354,-3178.349364,0.000151,2]
[408566536,1773893444364,-186.781636,0.000151,2]
[408566537,1773893444374,-151.0,0.000151,2]
[408566538,1773893444384,-151.0,0.000151,2]
[408566539,1773893444393,-151.0,0.000151,2]
[408566540,1773893444403,-908.823477,0.000151,2]
[408566541,1773893444412,-151.0,0.000151,2]
[408566542,1773893444422,-908.823477,0.000151,2]
[408566543,1773893444431,-908.823477,0.000151,2]
[408566544,1773893444441,-1073.830876,0.000151,2]
[408566545,1773893444450,-908.823477,0.000151,2]
[408566546,1773893444459,-1073.830876,0.000151,2]
[408566547,1773893444468,-1073.830876,0.000151,2]
[408566548,1773893444478,-1951.875944,0.000151,2]
[408566549,1773893444488,-1349.424833,0.000151,2]
[408566550,1773893444498,-1073.830876,0.000151,2]
[408566551,1773893444507,-1951.875944,0.000151,2]
[408566552,1773893444517,-1349.424833,0.000151,2]
[408566553,1773893444526,-1951.875944,0.000151,2]
[408566554,1773893444536,-1349.424833,0.000151,2]
[408566555,1773893444546,-280.24666,0.000151,2]
[408566556,1773893444555,-1951.875944,0.000151,2]
[408566557,1773893444564,-1349.424833,0.000151,2]
[408566558,1773893444574,-280.24666,0.000151,2]
[408566559,1773893444584,-186.812431,0.000151,2]
[408566560,1773893444593,-280.24666,0.000151,2]
[408566561,1773893444603,-186.812431,0.000151,2]
[408566562,1773893444611,-151.0,0.000151,2]
[408566563,1773893444620,-280.24666,0.000151,2]
[408566564,1773893444630,-151.0,0.000151,2]
[408566565,1773893444640,-186.812431,0.000151,2]
[408566566,1773893444649,-151.0,0.000151,2]
[408566567,1773893444659,-151.0,0.000151,2]
[408566568,1773893444669,-186.812431,0.000151,2]
[408566569,1773893444678,-151.0,0.000151,2]
[408566570,1773893444687,-151.0,0.000151,2]
[408566571,1773893444697,-351.175175,0.000151,2]
[408566572,1773893444706,-151.0,0.000151,2]
[408566573,1773893444716,-351.175175,0.000151,2]
[408566574,1773893444726,-622.980823,0.000151,2]
[408566575,1773893444737,-151.0,0.000151,2]
[408566576,1773893444747,-351.175175,0.000151,2]
[408566577,1773893444757,-622.980823,0.000151,2]
[408566578,1773893444767,-351.175175,0.000151,2]
[408566579,1773893444777,-622.980823,0.000151,2]
[408566580,1773893444787,-184.66,0.00015118,30]
[408566581,1773893444796,-2000.0,0.00015133,2]
[408566582,1773893444806,-1722.0,0.0001514,2]
[408566583,1773893444816,-179.0,0.0001514,2]
[408566584,1773893444826,-1567.0,0.00015145,2]
[408566585,1773893444835,-238.0,0.00015145,2]
[408566586,1773893444845,-9535.42,0.000152,2]
[408566587,1773893444856,-5533.0,0.000152,5]
[408566588,1773893444870,-235.501002,0.00015205,2]
[408566589,1773893444880,-2000.0,0.00015233,2]
[408566590,1773893444890,-500.0,0.0001526,2]
[408566591,1773893444900,-441.13,0.00015269,2]
[408566592,1773893444913,-3609.92329877,0.00015295,2]
[408566593,1773893444923,-1152.0,0.00015325,2]
[408566594,1773893444935,-1252.0,0.0001533,2]
[408566595,1773893444946,-2000.0,0.00015333,2]
[408566596,1773893444956,-883.04,0.00015342,2]
[408566597,1773893444966,-1500.0,0.00015342,2]
[408566598,1773893444975,-2000.0,0.00015342,2]
[408566599,1773893444986,-2000.0,0.00015342,2]
[408566600,1773893444996,-2000.0,0.00015342,2]
[408566601,1773893445006,-2000.0,0.00015342,2]
[408566602,1773893445016,-534.68838991,0.00015342,2]
[408566603,1773893445025,-1074.83203376,0.00015342,2]
[408566604,1773893445035,-1961.15092032,0.00015342,2]
[408566605,1773893445045,-1887.45023446,0.00015342,2]
[408566606,1773893445056,-1792.32890878,0.00015342,2]
[408566607,1773893445066,-2000.0,0.00015342,2]
[408566608,1773893445076,-2000.0,0.00015342,2]
[408566609,1773893445085,-2000.0,0.00015342,2]
[408566610,1773893445095,-1050.20986564,0.00015342,2]
[408566611,1773893445105,-4609.0,0.00015354,2]
[408566612,1773893445114,-2402.0,0.0001536,2]
[408566613,1773893445124,-387.97343129,0.00015373,2]
[408566614,1773893445134,-4968.42697151,0.000154,2]
[408566615,1773893445143,-159.08,0.00015408,2]
[408566616,1773893445153,-200.0,0.00015426,2]
[408566617,1773893445162,-2000.0,0.00015433,2]
[408566618,1773893445172,-621.0,0.00015438,2]
[408566619,1773893445181,-1000.0,0.00015452,2]
[408566620,1773893445191,-2500.0,0.00015452,2]
[408566621,1773893445201,-1700.0,0.00015452,2]
[408566622,1773893445210,-2402.0,0.00015465,2]
[408566623,1773893445220,-500.0,0.00015473,2]
[408566624,1773893445230,-1551.72714537,0.00015481,2]
[408566625,1773893445239,-225.96877254,0.00015481,2]
[408566626,1773893445249,-151.09920728,0.00015481,2]
[408566627,1773893445259,-237.75233873,0.00015481,2]
[408566628,1773893445270,-151.0,0.00015497,2]
[408566629,1773893445280,-604.18,0.000155,2]
[408566630,1773893445290,-151.0,0.000155,2]
[408566631,1773893445300,-151.0,0.000155,2]
[408566632,1773893445310,-151.0,0.000155,2]
[408566633,1773893445319,-151.0,0.000155,2]
[408566634,1773893445330,-151.0,0.000155,2]
[408566635,1773893445340,-151.0,0.000155,2]
[408566636,1773893445352,-151.0,0.000155,2]
[408566637,1773893445361,-151.0,0.000155,2]
[408566638,1773893445370,-151.0,0.000155,2]
[408566639,1773893445379,-151.0,0.000155,2]
[408566640,1773893445388,-288.438486,0.000155,2]
[408566641,1773893445398,-151.0,0.000155,2]
[408566642,1773893445408,-151.0,0.000155,2]
[408566643,1773893445417,-151.0,0.000155,2]
[408566644,1773893445427,-200.0,0.000155,2]
[408566645,1773893445437,-200.0,0.000155,2]
[408566646,1773893445446,-200.0,0.000155,2]
[408566647,1773893445455,-200.0,0.000155,2]
[408566648,1773893445464,-151.0,0.000155,2]
[408566649,1773893445473,-151.0,0.000155,2]
[408566650,1773893445483,-151.0,0.000155,2]
[408566651,1773893445492,-151.0,0.000155,2]
[408566652,1773893445502,-151.0,0.000155,2]
[408566653,1773893445511,-151.0,0.000155,2]
[408566654,1773893445520,-151.0,0.000155,2]
[408566655,1773893445529,-151.0,0.000155,2]
[408566656,1773893445540,-151.0,0.000155,2]
[408566657,1773893445549,-151.0,0.000155,2]
[408566658,1773893445558,-151.0,0.000155,2]
[408566659,1773893445568,-151.0,0.000155,2]
[408566660,1773893445577,-151.0,0.000155,2]
[408566661,1773893445587,-151.0,0.000155,2]
[408566662,1773893445599,-151.0,0.000155,2]
[408566663,1773893445611,-177.533889,0.000155,2]
[408566664,1773893445620,-199.967231,0.000155,2]
[408566665,1773893445630,-199.967231,0.000155,2]
[408566666,1773893445640,-199.967231,0.000155,2]
[408566667,1773893445649,-199.967231,0.000155,2]
[408566668,1773893445658,-197.17437,0.000155,2]
[408566669,1773893445667,-151.0,0.000155,2]
[408566671,1773893445678,-151.0,0.000155,2]
[408566673,1773893445688,-268.173321,0.000155,2]
[408566674,1773893445698,-151.0,0.000155,2]
[408566676,1773893445708,-151.0,0.000155,2]
[408566677,1773893445717,-151.0,0.000155,2]
[408566678,1773893445727,-200.0,0.000155,2]
[408566679,1773893445736,-200.0,0.000155,2]
[408566680,1773893445746,-200.0,0.000155,2]
[408566681,1773893445755,-151.0,0.000155,2]
[408566682,1773893445765,-200.0,0.000155,2]
[408566683,1773893445775,-296.226458,0.000155,2]
[408566684,1773893445784,-264.763438,0.000155,2]
[408566685,1773893445793,-151.0,0.000155,2]
[408566686,1773893445802,-212.928575,0.000155,2]
[408566687,1773893445812,-151.0,0.000155,2]
[408566688,1773893445821,-151.0,0.000155,2]
[408566689,1773893445831,-264.763438,0.000155,2]
[408566690,1773893445840,-212.928575,0.000155,2]
[408566691,1773893445850,-151.0,0.000155,2]
[408566692,1773893445863,-264.763438,0.000155,2]
[408566693,1773893445873,-212.928575,0.000155,2]
[408566694,1773893445882,-264.763438,0.000155,2]
[408566695,1773893445892,-211.139003,0.000155,2]
[408566696,1773893445903,-212.928575,0.000155,2]
[408566697,1773893445912,-211.139003,0.000155,2]
[408566698,1773893445922,-813.908493,0.000155,2]
[408566699,1773893445932,-151.0,0.000155,2]
[408566700,1773893445942,-211.139003,0.000155,2]
[408566701,1773893445952,-151.0,0.000155,2]
[408566702,1773893445962,-813.908493,0.000155,2]
[408566703,1773893445971,-514.779081,0.000155,2]
[408566704,1773893445981,-211.139003,0.000155,2]
[408566705,1773893445990,-813.908493,0.000155,2]
[408566706,1773893445999,-514.779081,0.000155,2]
[408566707,1773893446008,-813.908493,0.000155,2]
[408566708,1773893446072,-514.779081,0.000155,2]
[408566709,1773893446082,-514.779081,0.000155,2]
[408566710,1773893446091,-151.0,0.000155,2]
[408566711,1773893446100,-151.0,0.000155,2]
[408566712,1773893446109,-151.0,0.000155,2]
[408566713,1773893446119,-151.0,0.000155,2]
[408566714,1773893446129,-201.11778,0.000155,2]
[408566715,1773893446139,-612.702798,0.000155,2]
[408566716,1773893446150,-612.702798,0.000155,2]
[408566717,1773893446159,-151.0,0.000155,2]
[408566718,1773893446168,-612.702798,0.000155,2]
[408566719,1773893446179,-151.0,0.000155,2]
[408566720,1773893446188,-151.0,0.000155,2]
[408566721,1773893446198,-192.946168,0.000155,2]
[408566722,1773893446208,-612.702798,0.000155,2]
[408566723,1773893446217,-151.0,0.000155,2]
[408566724,1773893446227,-151.0,0.000155,2]
[408566725,1773893446236,-151.0,0.000155,2]